bitfinex-derivatives/quotes_BTCF0:USTF0_20250426
["timestamp","ask_amount","ask_price","bid_price","bid_amount"]
[1745708287769,0.2761644,94718.0,94717.0,0.3162]
[1745708288771,0.2761644,94718.0,94717.0,0.5272666]
[1745708289071,0.2761644,94718.0,94717.0,0.8880666]
[1745708290266,0.2761644,94718.0,94717.0,0.677]
[1745708290970,0.2761644,94718.0,94717.0,0.8880666]
[1745708291868,0.2761644,94718.0,94717.0,0.8218666]
[1745708292069,0.2761644,94718.0,94717.0,0.8880666]
[1745708292574,0.2761644,94718.0,94717.0,0.5272666]
[1745708292773,0.2761644,94718.0,94717.0,0.8880666]
[1745708295068,0.2761644,94718.0,94717.0,0.9202666]
[1745708295467,0.001,94718.0,94717.0,0.9202666]
[1745708295674,0.07365447,94750.0,94717.0,0.9202666]
[1745708295675,0.2110334,94734.0,94733.0,0.2110287]
[1745708295878,0.2910334,94734.0,94733.0,0.5272287]
[1745708296076,0.3242334,94734.0,94733.0,0.5272287]
[1745708296474,0.3242334,94734.0,94733.0,0.5594287]
[1745708296673,0.3282334,94734.0,94733.0,0.5594287]
[1745708299177,0.3589334,94734.0,94733.0,0.5594287]
[1745708299573,0.3589334,94734.0,94733.0,0.3484]
[1745708300078,0.3589334,94734.0,94733.0,0.34836]
[1745708301778,0.3589334,94734.0,94733.0,0.5593909]
[1745708302678,0.0527526,94743.0,94741.0,0.2110109]
[1745708302877,0.2110109,94742.0,94741.0,0.3610109]
[1745708303278,0.3142109,94742.0,94741.0,0.3610109]
[1745708303467,0.3142109,94742.0,94741.0,0.3928109]
[1745708304370,0.3192109,94742.0,94741.0,0.3928109]
[1745708305974,0.045,94742.0,94741.0,0.3928109]
[1745708306376,0.005,94742.0,94741.0,0.3928109]
[1745708307384,0.2637492,94748.0,94747.0,0.2109998]
[1745708307685,0.3137492,94748.0,94747.0,0.3709998]
[1745708307988,0.2609998,94748.0,94747.0,0.3709998]
[1745708308381,0.2609998,94748.0,94747.0,0.4017998]
[1745708308777,0.2609998,94748.0,94747.0,0.5017998]
[1745708308976,0.2609998,94748.0,94747.0,0.2908]
[1745708309283,0.2609998,94748.0,94747.0,0.35696]
[1745708309683,0.2609998,94748.0,94747.0,0.5679598]
[1745708312677,0.2609998,94748.0,94747.0,0.32616]
[1745708312876,0.2609998,94748.0,94747.0,0.22616]
[1745708313676,0.2609998,94748.0,94747.0,0.16]
[1745708313871,0.2609998,94748.0,94747.0,0.22616]
[1745708318979,0.2609998,94748.0,94747.0,0.16]
[1745708319181,0.2309998,94748.0,94747.0,0.16]
[1745708319585,0.2409998,94748.0,94747.0,0.1908]
[1745708319792,0.4509998,94748.0,94747.0,0.1908]
[1745708319982,0.4509998,94748.0,94747.0,0.16]
[1745708321194,0.24,94748.0,94747.0,0.3709998]
[1745708321383,0.0013,94751.0,94750.0,0.2109931]
[1745708321691,0.0013,94751.0,94750.0,0.7117931]
[1745708322087,0.0527405,94764.0,94757.0,0.2109775]
[1745708322286,0.2761753,94758.0,94757.0,0.5270975]
[1745708322488,0.2761753,94758.0,94757.0,0.5903975]
[1745708323490,0.2761753,94758.0,94757.0,0.6043975]
[1745708326091,0.2761753,94758.0,94757.0,0.9651975]
[1745708326294,0.2761753,94758.0,94757.0,0.75422]
[1745708326690,0.2761753,94758.0,94757.0,0.76487109]
[1745708329089,0.2761753,94758.0,94757.0,0.97584859]
[1745708329287,0.0652,94758.0,94757.0,0.97584859]
[1745708329487,0.0052,94758.0,94757.0,0.97584859]
[1745708329689,0.0052,94758.0,94757.0,1.03012939]
[1745708330289,0.2161753,94758.0,94757.0,1.03012939]
[1745708333208,0.2161753,94758.0,94757.0,0.97584859]
[1745708333499,0.0527372,94770.0,94766.0,0.2109575]
[1745708333692,0.2579552,94767.0,94766.0,0.8017575]
[1745708333892,0.2579552,94767.0,94766.0,0.8643575]
[1745708334700,0.2579552,94767.0,94766.0,0.8763575]
[1745708335500,0.047,94767.0,94766.0,0.8763575]
[1745708335699,0.047,94767.0,94766.0,0.8783575]
[1745708336300,0.047,94767.0,94766.0,0.88627321]
[1745708336600,0.047,94767.0,94766.0,0.95239321]
[1745708338005,0.007,94767.0,94766.0,0.95239321]
[1745708339003,0.2109463,94772.0,94771.0,0.2109463]
[1745708339203,0.2509463,94772.0,94771.0,0.4409463]
[1745708339708,0.2509463,94772.0,94771.0,0.23]
[1745708339903,0.2509463,94772.0,94771.0,0.2612]
[1745708340093,0.2509463,94772.0,94771.0,0.32732]
[1745708340300,0.3128463,94772.0,94771.0,0.32732]
[1745708340812,0.3128463,94772.0,94771.0,0.34032]
[1745708348209,0.4828463,94772.0,94771.0,0.30912]
[1745708348514,0.4828463,94772.0,94771.0,0.20912]
[1745708350013,0.4828463,94772.0,94771.0,0.143]
[1745708350215,0.4828463,94772.0,94771.0,0.20908]
[1745708359621,0.58836231,94772.0,94771.0,0.20908]
[1745708360128,0.4828463,94772.0,94771.0,0.20908]
[1745708361825,0.4828463,94772.0,94771.0,0.143]
[1745708362320,0.58836231,94772.0,94771.0,0.143]
[1745708363923,1.00626231,94772.0,94771.0,0.143]
[1745708366024,1.36706231,94772.0,94771.0,0.143]
[1745708368232,1.36706231,94772.0,94771.0,1.7038423]
[1745708368233,0.12682896,94772.0,94771.0,1.7038423]
[1745708368432,0.29373236,94791.0,94790.0,0.210904]
[1745708368632,0.21611611,94819.0,94790.0,0.210904]
[1745708368633,0.13947831,94817.0,94816.0,0.2108462]
[1745708368932,0.35032231,94817.0,94816.0,0.31608]
[1745708369230,0.35032231,94817.0,94816.0,0.32675833]
[1745708369625,0.35032231,94817.0,94816.0,0.26067833]
[1745708370621,0.35032231,94817.0,94816.0,0.27567833]
[1745708371023,0.35032231,94817.0,94816.0,0.30837833]
[1745708371223,0.35032231,94817.0,94816.0,0.31635842]
[1745708373022,0.210844,94817.0,94816.0,0.31635842]
[1745708373227,0.210844,94817.0,94816.0,0.34915842]
[1745708373525,0.210844,94817.0,94816.0,0.56000462]
[1745708374930,0.210844,94817.0,94816.0,0.34915842]
[1745708377228,0.210844,94817.0,94816.0,0.56000462]
[1745708378126,0.45611981,94817.0,94816.0,0.17298009]
[1745708378430,0.55141981,94817.0,94816.0,0.17298009]
[1745708380934,0.34141981,94817.0,94816.0,0.17298009]
[1745708386339,0.50141981,94817.0,94816.0,0.17298009]
[1745708390139,0.86221981,94817.0,94816.0,0.17298009]
[1745708392634,0.86221981,94817.0,94816.0,0.15798009]
[1745708395043,0.86221981,94817.0,94797.0,0.23]
[1745708395044,0.2108863,94798.0,94797.0,0.23]
[1745708395245,0.2308863,94798.0,94797.0,0.21604]
[1745708395639,0.2308863,94798.0,94797.0,0.22649252]
[1745708395843,0.2308863,94798.0,94797.0,0.43738102]
[1745708396039,0.2933863,94798.0,94797.0,0.22649252]
[1745708396244,0.2933863,94798.0,94797.0,0.22849252]
[1745708397542,0.0825,94798.0,94797.0,0.44709878]
[1745708397842,0.0302,94803.0,94802.0,0.2108774]
[1745708398049,0.0302,94803.0,94802.0,0.3508774]
[1745708398347,0.2410751,94803.0,94802.0,0.3508774]
[1745708398744,0.2410751,94803.0,94802.0,0.4130774]
[1745708399248,0.2410751,94803.0,94802.0,0.4140774]
[1745708399553,0.2410751,94803.0,94802.0,0.2032]
[1745708400747,0.24635091,94803.0,94802.0,0.23754]
[1745708401144,0.27715091,94803.0,94802.0,0.23754]
[1745708401846,0.00527581,94819.0,94802.0,1.120434]
[1745708402148,0.3608,94826.0,94811.0,0.3608]
[1745708402149,0.05798831,94815.0,94811.0,0.3608]
[1745708402448,0.2108551,94812.0,94811.0,0.8116557]
[1745708402645,0.21613091,94812.0,94811.0,0.6008]
[1745708402850,0.28003091,94812.0,94811.0,0.20604]
[1745708403036,0.28003091,94812.0,94811.0,0.14]
[1745708405139,0.29003091,94812.0,94811.0,0.14]
[1745708405836,0.29003091,94812.0,94811.0,0.19443301]
[1745708407344,0.01527581,94812.0,94811.0,0.40529031]
[1745708407649,0.00527581,94812.0,94811.0,0.8423573]
[1745708407849,0.00527581,94812.0,94811.0,0.89676528]
[1745708408546,0.2108551,94812.0,94811.0,0.68590798]
[1745708408741,0.21613091,94812.0,94811.0,0.29740798]
[1745708408941,0.28153091,94812.0,94811.0,0.26344798]
[1745708409147,0.28153091,94812.0,94811.0,0.26044798]
[1745708409343,0.28153091,94812.0,94811.0,0.26344798]
[1745708409648,0.28153091,94812.0,94811.0,0.20904]
[1745708410039,0.29153091,94812.0,94811.0,0.20904]
[1745708410450,0.29153091,94812.0,94811.0,0.143]
[1745708415257,0.29153091,94812.0,94811.0,0.14]
[1745708415457,0.29153091,94812.0,94811.0,0.145]
[1745708419548,0.28153091,94812.0,94811.0,0.145]
[1745708419752,0.210884,94799.0,94798.0,0.2262744]
[1745708419952,0.220884,94799.0,94798.0,0.5871607]
[1745708420454,0.220884,94799.0,94798.0,0.3762744]
[1745708421257,0.220884,94799.0,94798.0,0.3102344]
[1745708421955,0.220884,94799.0,94798.0,0.3152344]
[1745708422458,0.220884,94799.0,94798.0,0.155]
[1745708425261,0.224184,94799.0,94798.0,0.155]
[1745708425963,0.224184,94799.0,94798.0,0.15]
[1745708426163,0.224184,94799.0,94798.0,0.155]
[1745708426561,0.224184,94799.0,94798.0,0.15]
[1745708426761,0.224184,94799.0,94798.0,0.154]
[1745708431761,0.6287716,94805.0,94804.0,0.2108729]
[1745708431960,0.6287716,94805.0,94804.0,0.8316729]
[1745708432162,0.6287716,94805.0,94804.0,0.6208]
[1745708432359,0.9895716,94805.0,94804.0,0.26]
[1745708432661,1.3215716,94805.0,94804.0,0.16]
[1745708433052,1.3215716,94805.0,94804.0,0.163]
[1745708438254,0.9036716,94805.0,94804.0,0.163]
[1745708444374,0.5428716,94805.0,94804.0,0.17854762]
[1745708445270,0.5428716,94805.0,94804.0,0.163]
[1745708445472,0.3228716,94805.0,94804.0,0.163]
[1745708445773,0.3228716,94805.0,94804.0,0.21739625]
[1745708445968,0.3228716,94805.0,94804.0,0.163]
[1745708450371,0.3228716,94805.0,94804.0,0.1787848]
[1745708452069,0.3228716,94805.0,94804.0,0.17862584]
[1745708453372,0.3228716,94805.0,94804.0,0.163]
[1745708455978,0.00997,94813.0,94804.0,1.14587999]
[1745708456171,0.2208229,94813.0,94812.0,0.3608]
[1745708456367,0.2208229,94813.0,94812.0,0.29438367]
[1745708456566,0.2625229,94813.0,94812.0,0.19438367]
[1745708457071,0.2525529,94813.0,94812.0,0.19438367]
[1745708457278,0.2525529,94813.0,94812.0,0.20999774]
[1745708457574,0.2525529,94813.0,94812.0,0.15561407]
[1745708458179,0.2525529,94813.0,94812.0,0.15661407]
[1745708462079,0.4825529,94813.0,94812.0,0.15661407]
[1745708462582,0.4825529,94813.0,94812.0,0.15681314]
[1745708462973,0.4825529,94813.0,94802.0,0.1602344]
[1745708462974,0.2108751,94803.0,94802.0,0.1602344]
[1745708463173,0.2108751,94803.0,94802.0,0.2302344]
[1745708463174,0.4608751,94803.0,94802.0,0.2302344]
[1745708463577,0.4912751,94803.0,94802.0,0.2302344]
[1745708464875,0.4912751,94803.0,94802.0,0.2332344]
[1745708465583,0.4912751,94803.0,94802.0,0.073]
[1745708467179,0.8520751,94803.0,94802.0,0.073]
[1745708468080,0.8850751,94803.0,94802.0,0.073]
[1745708469687,0.2208751,94803.0,94802.0,0.4338]
[1745708469881,0.2208751,94803.0,94802.0,0.58813845]
[1745708469882,0.2108751,94803.0,94802.0,0.58813845]
[1745708470188,0.2438751,94803.0,94802.0,0.58813845]
[1745708470574,0.2749751,94803.0,94802.0,0.58813845]
[1745708470886,0.2749751,94803.0,94802.0,0.12733845]
[1745708471084,0.2849751,94803.0,94802.0,0.073]
[1745708474877,0.2849751,94803.0,94802.0,0.08892227]
[1745708486293,0.5349751,94803.0,94802.0,0.08892227]
[1745708486682,0.5349751,94803.0,94802.0,0.073]
[1745708486881,0.5349751,94803.0,94802.0,0.08947872]
[1745708488991,0.4708751,94803.0,94802.0,0.08947872]
[1745708489295,0.2418751,94803.0,94802.0,0.76115612]
[1745708490297,0.2418751,94803.0,94802.0,0.82625612]
[1745708495691,0.2418751,94803.0,94802.0,0.61537872]
[1745708496090,0.2418751,94803.0,94802.0,0.66973297]
[1745708496295,0.2418751,94803.0,94802.0,0.61537872]
[1745708496597,0.2418751,94803.0,94802.0,0.66973398]
[1745708496800,0.2418751,94803.0,94802.0,0.88061138]
[1745708497985,0.2418751,94803.0,94802.0,0.88060999]
[1745708499385,0.2418751,94803.0,94802.0,0.66973259]
[1745708499994,0.2418751,94803.0,94802.0,0.88060999]
[1745708501586,0.2418751,94803.0,94802.0,0.88060997]
[1745708503489,0.2418751,94803.0,94802.0,1.04084879]
[1745708504697,0.2418751,94803.0,94802.0,1.00874879]
[1745708505989,0.2418751,94803.0,94802.0,1.07522879]
[1745708507600,0.2418751,94803.0,94802.0,0.71442879]
[1745708508903,0.031,94803.0,94802.0,0.71442879]
[1745708509303,0.0712,94806.0,94805.0,0.2108707]
[1745708509502,0.03719,94806.0,94805.0,0.43170317]
[1745708509802,0.2427553,94812.0,94811.0,0.2108573]
[1745708510100,0.2427553,94812.0,94811.0,0.53168977]
[1745708510605,0.2427553,94812.0,94811.0,0.47733451]
[1745708511805,0.2427553,94812.0,94811.0,0.47733364]
[1745708512407,0.0319,94812.0,94811.0,0.47833364]
[1745708512599,0.0319,94812.0,94811.0,0.5327009]
[1745708512795,0.0651,94812.0,94811.0,0.5327009]
[1745708513702,0.2759551,94812.0,94811.0,0.51622456]
[1745708513903,0.2759551,94812.0,94811.0,0.53270081]
[1745708516198,0.0651,94812.0,94811.0,0.53270081]
[1745708516905,0.02615117,94849.0,94822.0,0.1]
[1745708517100,0.09563903,94858.0,94857.0,0.2107551]
[1745708517404,0.02344813,94874.0,94873.0,0.2107195]
[1745708517598,0.02344813,94874.0,94873.0,0.80443575]
[1745708517796,0.02344813,94874.0,94873.0,0.83799575]
[1745708518004,0.05474813,94874.0,94873.0,0.26647625]
[1745708518307,0.3608,94889.0,94874.0,0.2107173]
[1745708518605,0.0311,94888.0,94874.0,0.74730265]
[1745708518800,0.0311,94888.0,94874.0,0.53658535]
[1745708519001,0.0311,94888.0,94874.0,0.17578535]
[1745708519002,0.39748132,94875.0,94874.0,0.17578535]
[1745708519203,0.18676622,94875.0,94874.0,0.38650265]
[1745708519398,0.18676622,94875.0,94874.0,0.74730265]
[1745708519607,0.18676622,94875.0,94874.0,0.81374265]
[1745708519806,0.18676622,94875.0,94874.0,0.81674265]
[1745708520009,0.18676622,94875.0,94874.0,0.81646482]
[1745708520309,0.18676622,94875.0,94874.0,0.84756482]
[1745708521107,0.0052,94878.0,94877.0,0.2107107]
[1745708521108,1e-08,94878.0,94877.0,0.2107107]
[1745708521311,0.0339,94899.0,94898.0,0.210664]
[1745708521503,0.0337,94911.0,94898.0,0.210664]
[1745708521504,0.0336,94906.0,94898.0,0.75541322]
[1745708521699,0.0336,94906.0,94899.0,0.009]
[1745708521906,0.0336,94906.0,94899.0,0.159]
[1745708522214,0.0336,94906.0,94899.0,0.279]
[1745708522712,0.2106596,94900.0,94899.0,0.27]
[1745708522911,0.2428596,94900.0,94899.0,0.33644]
[1745708523106,0.2428596,94900.0,94899.0,0.21644]
[1745708523306,0.2428596,94900.0,94899.0,0.21844]
[1745708523707,0.2428596,94900.0,94899.0,0.23394529]
[1745708524709,0.2759596,94900.0,94899.0,0.23194529]
[1745708524904,0.2759596,94900.0,94899.0,0.23294529]
[1745708525104,0.0526685,94894.0,94892.0,0.06644]
[1745708525409,0.2106862,94888.0,94887.0,0.3608]
[1745708525612,0.4216162,94888.0,94887.0,0.55724]
[1745708525811,1.78851635,94888.0,94887.0,0.55724]
[1745708526105,2.84239635,94888.0,94887.0,0.29644]
[1745708526306,1.3271662,94888.0,94887.0,0.29644]
[1745708527909,0.2732862,94888.0,94887.0,0.30044]
[1745708531316,0.2732862,94888.0,94881.0,0.3608]
[1745708531317,0.2106973,94883.0,94882.0,0.0664]
[1745708531618,0.8024273,94883.0,94882.0,0.1464]
[1745708531816,3.43417745,94883.0,94882.0,0.08]
[1745708532011,3.43417745,94883.0,94882.0,0.0283]
[1745708532413,3.22348015,94883.0,94882.0,0.0283]
[1745708532618,0.2107173,94874.0,94863.0,0.15]
[1745708532825,0.2107173,94874.0,94863.0,0.06664]
[1745708532826,0.0526852,94864.0,94863.0,0.06664]
[1745708533121,0.2734247,94864.0,94863.0,0.33698705]
[1745708533417,1.8993147,94864.0,94863.0,0.22664]
[1745708535424,0.2107484,94860.0,94859.0,0.00016]
[1745708535725,3.07366855,94860.0,94859.0,0.14]
[1745708536217,3.13716855,94860.0,94859.0,0.14]
[1745708536423,3.00281428,94860.0,94859.0,0.14]
[1745708536616,3.00281428,94860.0,94859.0,0.14794491]
[1745708537011,3.00281428,94860.0,94859.0,0.14894491]
[1745708537218,3.00281428,94860.0,94859.0,0.16494924]
[1745708538620,3.00281428,94860.0,94859.0,0.1649314]
[1745708538814,1.42498413,94860.0,94859.0,0.1649314]
[1745708540622,1.42498413,94860.0,94859.0,0.16507022]
[1745708542820,0.5051784,94860.0,94859.0,0.16507022]
[1745708543021,1.42554413,94860.0,94859.0,0.16507022]
[1745708543425,1.42554413,94860.0,94859.0,0.16508688]
[1745708545625,1.42554413,94860.0,94859.0,0.16512285]
[1745708547514,1.42554413,94860.0,94859.0,0.16512431]
[1745708548322,0.2942484,94860.0,94859.0,0.26512431]
[1745708548522,0.2742484,94860.0,94859.0,0.33272431]
[1745708549327,0.2107484,94860.0,94859.0,0.54347491]
[1745708551835,0.2107484,94860.0,94859.0,0.33272431]
[1745708552827,0.2107484,94860.0,94859.0,0.54347491]
[1745708554438,0.2432484,94860.0,94859.0,0.54347491]
[1745708554825,2.74144428,94860.0,94859.0,0.26517118]
[1745708555025,2.99537428,94860.0,94859.0,0.26517118]
[1745708555630,0.2862484,94860.0,94859.0,0.26517118]
[1745708555835,0.2432484,94860.0,94859.0,0.47592178]
[1745708556035,0.2432484,94860.0,94859.0,0.51142178]
[1745708556828,0.2432484,94860.0,94859.0,0.57810178]
[1745708557327,0.0325,94860.0,94859.0,0.57810178]
[1745708557732,0.0325,94860.0,94859.0,0.61040178]
[1745708558935,0.2432484,94860.0,94859.0,0.61040178]
[1745708559538,0.2432484,94860.0,94859.0,0.66468398]
[1745708559723,0.2432484,94860.0,94859.0,0.36415118]
[1745708559926,2.95237428,94860.0,94859.0,0.26517118]
[1745708560324,2.95237428,94860.0,94859.0,0.33185118]
[1745708561341,2.96237428,94860.0,94859.0,0.33185118]
[1745708561751,3.32317428,94860.0,94859.0,0.33185118]
[1745708563142,3.32317428,94860.0,94859.0,0.33176722]
[1745708564045,3.32317428,94860.0,94859.0,0.33169818]
[1745708565145,3.32317428,94860.0,94859.0,0.26501818]
[1745708569549,3.32317428,94860.0,94859.0,0.24894491]
[1745708569749,2.96237428,94860.0,94859.0,0.26506897]
[1745708569948,3.32317428,94860.0,94859.0,0.26506897]
[1745708570143,2.96237428,94860.0,94859.0,0.26506897]
[1745708570342,3.32317428,94860.0,94859.0,0.26506897]
[1745708570749,3.32317428,94860.0,94859.0,0.42539457]
[1745708572052,3.31317428,94860.0,94859.0,0.42539457]
[1745708572252,1.73534413,94860.0,94859.0,0.42539457]
[1745708572854,3.31317428,94860.0,94859.0,0.42539457]
[1745708573350,1.73534413,94860.0,94859.0,0.42573971]
[1745708573851,1.37454413,94860.0,94859.0,0.42573971]
[1745708574052,1.73534413,94860.0,94859.0,0.42573971]
[1745708574755,1.73534413,94860.0,94859.0,0.26541411]
[1745708575053,1.37454413,94860.0,94859.0,0.26541411]
[1745708575241,1.73534413,94860.0,94859.0,0.26541412]
[1745708576952,0.6040484,94860.0,94859.0,0.47616472]
[1745708577253,0.01258567,94860.0,94859.0,0.59685438]
[1745708577447,0.22333407,94860.0,94859.0,0.70075438]
[1745708577643,0.22333407,94860.0,94859.0,0.41980378]
[1745708577847,0.22333407,94860.0,94859.0,0.35356378]
[1745708578047,0.22333407,94860.0,94859.0,0.41980378]
[1745708578247,0.17333407,94860.0,94859.0,0.41980378]
[1745708579449,1.0936998,94860.0,94859.0,0.38610378]
[1745708579648,1.3046298,94860.0,94859.0,0.38610378]
[1745708579955,1.3046298,94860.0,94859.0,0.33165412]
[1745708580656,1.3146298,94860.0,94859.0,0.33165412]
[1745708581051,1.31485371,94860.0,94859.0,0.33165412]
[1745708581252,1.34765371,94860.0,94859.0,0.33165412]
[1745708585647,1.34765371,94860.0,94859.0,0.33165368]
[1745708587667,1.34765371,94860.0,94859.0,0.4919768]
[1745708589465,1.34765371,94860.0,94859.0,0.49197679]
[1745708590062,1.34765371,94860.0,94859.0,0.52627679]
[1745708591065,1.34765371,94860.0,94859.0,0.52627683]
[1745708591469,1.34765371,94860.0,94859.0,0.36595371]
[1745708591663,1.34765371,94860.0,94859.0,0.42049658]
[1745708592167,1.34765371,94860.0,94859.0,0.38619658]
[1745708592468,1.34765371,94860.0,94859.0,0.31995658]
[1745708593461,1.34765371,94860.0,94859.0,0.35445658]
[1745708594658,1.34765371,94860.0,94859.0,0.35345658]
[1745708594863,1.34765371,94860.0,94859.0,0.31895655]
[1745708595165,1.34865371,94860.0,94859.0,0.31895655]
[1745708598369,1.34865371,94860.0,94859.0,0.35405655]
[1745708598569,1.34865371,94860.0,94859.0,0.35405658]
[1745708599865,1.34865371,94860.0,94859.0,0.26441371]
[1745708600272,1.34865371,94860.0,94859.0,0.29671371]
[1745708601271,1.34865371,94860.0,94859.0,0.29660679]
[1745708601471,1.70945371,94860.0,94859.0,0.29660679]
[1745708601971,1.49852371,94860.0,94859.0,0.32900679]
[1745708602274,1.49852371,94860.0,94859.0,0.3287313]
[1745708602465,1.13772371,94860.0,94859.0,0.3287313]
[1745708603169,1.12772371,94860.0,94859.0,0.38327699]
[1745708604169,1.12772371,94860.0,94859.0,0.38316118]
[1745708604368,0.00122391,94860.0,94859.0,0.53936609]
[1745708604565,0.00122391,94860.0,94859.0,0.62720896]
[1745708605267,0.00122391,94860.0,94859.0,0.74720896]
[1745708605468,0.2107484,94860.0,94859.0,0.74720896]
[1745708606575,0.1607484,94860.0,94859.0,0.74720896]
[1745708607775,0.1107484,94860.0,94859.0,0.74720896]
[1745708608369,0.1107484,94860.0,94859.0,0.75020896]
[1745708608774,0.1107484,94860.0,94859.0,1.11100896]
[1745708609866,0.2634311,94862.0,94861.0,0.2107462]
[1745708610062,0.2634311,94862.0,94861.0,0.21051345]
[1745708610268,0.2634311,94862.0,94861.0,0.22201058]
[1745708610467,0.2634311,94862.0,94861.0,0.36671678]
[1745708610669,0.2945311,94862.0,94861.0,0.43275678]
[1745708610869,0.3287311,94862.0,94861.0,0.43275678]
[1745708611272,0.3287311,94862.0,94861.0,0.48726148]
[1745708611467,0.3287311,94862.0,94861.0,0.48922991]
[1745708611780,0.3287311,94862.0,94861.0,0.43472521]
[1745708612074,0.3287311,94862.0,94861.0,0.15793901]
[1745708612275,0.3287311,94862.0,94861.0,0.22397901]
[1745708613880,0.3287311,94862.0,94861.0,0.27655321]
[1745708615182,0.3287311,94862.0,94861.0,0.27652308]
[1745708617077,1.24909683,94862.0,94861.0,0.27652308]
[1745708618279,1.24909683,94862.0,94861.0,0.27629514]
[1745708619676,1.24909683,94862.0,94861.0,0.22179704]
[1745708625080,1.24909683,94862.0,94861.0,0.20604]
[1745708626173,3.03785698,94862.0,94861.0,0.20604]
[1745708627075,3.03785698,94862.0,94858.0,0.00158116]
[1745708627076,0.21093,94860.0,94858.0,0.00158116]
[1745708627281,1.40714633,94859.0,94858.0,0.04158116]
[1745708627478,1.54714633,94859.0,94858.0,0.04158116]
[1745708627679,3.12497648,94859.0,94858.0,0.04158116]
[1745708629592,3.12497648,94859.0,94858.0,0.04962211]
[1745708630582,3.48577648,94859.0,94858.0,0.04962211]
[1745708637881,0.21093,94844.0,94817.0,0.36607329]
[1745708638086,0.421734,94835.0,94834.0,0.05447955]
[1745708638295,0.72236439,94834.0,94833.0,0.27557933]
[1745708638588,1.04486439,94834.0,94833.0,0.41557933]
[1745708638790,2.62269454,94834.0,94833.0,0.14781131]
[1745708638981,2.62269454,94834.0,94833.0,0.04255681]
[1745708639185,2.62269454,94834.0,94833.0,5e-08]
[1745708639490,2.62269454,94834.0,94833.0,0.14]
[1745708639695,2.62269454,94834.0,94833.0,0.0591851]
[1745708640197,0.2108195,94828.0,94827.0,0.32227777]
[1745708640390,1.34317769,94828.0,94827.0,0.48227777]
[1745708641094,1.41027769,94828.0,94827.0,0.48227777]
[1745708641589,1.41027769,94828.0,94827.0,0.48527777]
[1745708643905,1.41027769,94828.0,94827.0,0.493263]
[1745708644199,1.41027769,94828.0,94827.0,0.17098523]
[1745708647495,1.04947769,94828.0,94827.0,0.17098523]
[1745708647794,1.41027769,94828.0,94827.0,0.17098523]
[1745708649005,1.04947769,94828.0,94827.0,0.17098523]
[1745708649205,1.41027769,94828.0,94827.0,0.17098523]
[1745708654719,1.04947769,94828.0,94827.0,0.17098523]
[1745708655022,1.41027769,94828.0,94827.0,0.17098523]
[1745708656411,1.04947769,94828.0,94827.0,0.17098523]
[1745708656619,1.41027769,94828.0,94827.0,0.17098523]
[1745708657626,0.51144769,94828.0,94827.0,0.38180703]
[1745708658215,0.51144769,94828.0,94827.0,0.41280703]
[1745708658414,0.51144769,94828.0,94827.0,0.20198523]
[1745708659118,0.72237769,94828.0,94827.0,0.20198523]
[1745708659315,0.73237769,94828.0,94827.0,0.20198523]
[1745708659517,0.73237769,94828.0,94827.0,0.17098523]
[1745708659718,1.06727769,94828.0,94827.0,0.17098523]
[1745708665930,1.42807769,94828.0,94827.0,0.17098523]
[1745708667327,0.2108418,94818.0,94808.0,0.22]
[1745708667526,0.8216418,94818.0,94817.0,0.22832385]
[1745708667828,1.12226999,94818.0,94817.0,0.22832385]
[1745708668026,1.33319999,94818.0,94817.0,0.22832385]
[1745708668233,1.39779999,94818.0,94817.0,0.22832385]
[1745708668727,1.46479999,94818.0,94817.0,0.22932385]
[1745708668937,1.40019999,94818.0,94817.0,0.22932385]
[1745708669728,1.19019999,94818.0,94817.0,0.22832385]
[1745708670838,0.82939999,94818.0,94817.0,0.22832385]
[1745708671134,1.19019999,94818.0,94817.0,0.23640993]
[1745708672341,1.19019999,94818.0,94817.0,0.29094111]
[1745708674031,0.82939999,94818.0,94817.0,0.29094111]
[1745708675030,1.19019999,94818.0,94817.0,0.29094111]
[1745708677544,1.19019999,94818.0,94817.0,0.23640993]
[1745708680535,2.76803014,94818.0,94817.0,0.14808608]
[1745708680733,2.96803014,94818.0,94817.0,0.06]
[1745708681144,2.96803014,94818.0,94817.0,0.027835]
[1745708681347,0.2108618,94809.0,94808.0,0.03139]
[1745708681546,1.31321999,94809.0,94808.0,0.18139]
[1745708681750,0.2108707,94805.0,94804.0,0.01734317]
[1745708681942,0.4508707,94805.0,94804.0,0.05]
[1745708682138,0.2108929,94795.0,94794.0,0.32227777]
[1745708682335,1.37325109,94795.0,94794.0,0.47995995]
[1745708682541,2.95108124,94795.0,94794.0,0.16566045]
[1745708682738,0.2109018,94791.0,94790.0,0.26873356]
[1745708682944,0.90245999,94791.0,94790.0,0.33873356]
[1745708685652,0.90245999,94791.0,94790.0,0.07105496]
[1745708686246,0.90245999,94791.0,94790.0,0.07898815]
[1745708687147,1.26325999,94791.0,94790.0,0.07898815]
[1745708692953,0.21093,94788.0,94778.0,0.06604]
[1745708693154,0.2109241,94781.0,94780.0,0.0626]
[1745708693456,0.5917241,94781.0,94780.0,0.2026]
[1745708693655,0.89235229,94781.0,94780.0,0.2026]
[1745708694156,1.02365229,94781.0,94780.0,0.2026]
[1745708694359,1.24365229,94781.0,94780.0,0.14]
[1745708694753,0.2109285,94779.0,94778.0,0.002]
[1745708695058,0.2109352,94776.0,94769.0,0.0626]
[1745708695248,0.2109352,94776.0,94775.0,0.15158256]
[1745708695249,1.21329339,94776.0,94775.0,0.15158256]
[1745708696357,0.0527431,94760.0,94745.0,1.12404]
[1745708696556,0.2109753,94758.0,94757.0,0.03527663]
[1745708696763,0.2209753,94758.0,94757.0,0.03527663]
[1745708696960,0.52160349,94758.0,94757.0,0.03527663]
[1745708697161,0.58810349,94758.0,94757.0,0.03527663]
[1745708697663,0.58810349,94758.0,94757.0,0.04327026]
[1745708697961,0.58810349,94758.0,94757.0,0.06160137]
[1745708698353,0.58910349,94758.0,94757.0,0.06060137]
[1745708700975,0.94990349,94758.0,94757.0,0.06060137]
[1745708702276,0.94990349,94758.0,94757.0,0.04327026]
[1745708703476,0.94990349,94758.0,94757.0,0.17127026]
[1745708703672,0.5727753,94758.0,94757.0,0.38224776]
[1745708704068,0.5727753,94758.0,94757.0,0.50224776]
[1745708704977,0.5727753,94758.0,94757.0,0.29127026]
[1745708706171,0.5727753,94758.0,94757.0,0.17127026]
[1745708708677,0.2119753,94758.0,94757.0,0.17127026]
[1745708708983,0.51260349,94758.0,94757.0,0.17127026]
[1745708709577,0.72353349,94758.0,94757.0,0.10997026]
[1745708709768,0.0527455,94755.0,94749.0,0.06604]
[1745708709973,0.5717931,94750.0,94749.0,0.21382373]
[1745708710283,0.6317931,94750.0,94749.0,0.24516453]
[1745708710783,1.35335129,94750.0,94749.0,0.21382373]
[1745708710978,1.48715129,94750.0,94749.0,0.21382373]